bitfinex-derivatives/quotes_ETHF0:USTF0_20240928
["timestamp","ask_amount","ask_price","bid_price","bid_amount"]
[1727517246552,1.95594754,2669.8,2669.7,1.72448]
[1727517246746,2.33864754,2669.9,2669.8,0.37446]
[1727517247142,2.33864754,2669.9,2669.8,4.12006]
[1727517247551,0.3827,2669.9,2669.8,4.12006]
[1727517247954,2.3395122,2669.9,2669.8,4.12006]
[1727517248447,0.3827,2669.9,2669.8,4.12006]
[1727517249155,0.3827,2669.9,2669.8,0.37446]
[1727517249350,2.33947025,2669.9,2669.8,0.37446]
[1727517249554,0.3827,2669.9,2669.8,0.37446]
[1727517249953,6.04802969,2670.0,2669.8,1.31062]
[1727517250153,5.16501845,2670.0,2669.9,5.47005]
[1727517250359,5.16501845,2670.0,2669.9,1.72445]
[1727517250659,5.16501845,2670.0,2669.9,1.35]
[1727517251061,5.16501845,2670.0,2669.9,1.72445]
[1727517251657,3.2078,2670.0,2669.9,1.72445]
[1727517252154,4.18628972,2670.0,2669.8,1.72445]
[1727517252353,0.388,2669.9,2669.8,1.35]
[1727517252567,0.388,2669.9,2669.8,1.72446]
[1727517254057,1.36648972,2669.9,2669.8,1.35]
[1727517254450,1.36648972,2669.9,2669.8,1.72446]
[1727517255357,1.36648972,2669.9,2669.8,1.35]
[1727517255560,1.36648972,2669.9,2669.8,1.72446]
[1727517256162,0.388,2669.9,2669.8,1.72446]
[1727517259655,1.85573458,2669.9,2669.8,1.72446]
[1727517263263,1.85642563,2669.9,2669.8,1.72446]
[1727517263663,1.85664512,2669.9,2669.8,1.72446]
[1727517263869,0.388,2669.9,2669.8,1.72446]
[1727517264059,1.85666581,2669.9,2669.8,1.72446]
[1727517264566,0.388,2669.9,2669.8,1.72446]
[1727517266572,1.36775245,2669.9,2669.8,1.72446]
[1727517269768,0.97975245,2669.9,2669.8,1.72446]
[1727517269970,0.97975245,2670.0,2669.9,0.37445]
[1727517270169,0.97975245,2670.0,2669.9,1.72445]
[1727517270471,0.97975245,2670.0,2669.9,2.11025]
[1727517273970,1.85402867,2670.1,2670.0,0.37443]
[1727517276081,0.3844,2670.1,2670.0,0.37443]
[1727517277074,1.85545941,2670.1,2670.0,0.37443]
[1727517277378,1.85546367,2670.1,2670.0,0.37443]
[1727517277678,0.3844,2670.1,2670.0,0.37443]
[1727517280570,2.34161845,2670.1,2670.0,0.37443]
[1727517281670,1.96911661,2670.1,2670.0,0.37443]
[1727517284009,2.34353661,2670.1,2670.0,0.37443]
[1727517284173,1.96911661,2670.1,2670.0,0.37443]
[1727517284577,1.96979328,2670.1,2670.0,0.37443]
[1727517286074,2.34422328,2670.1,2670.0,0.37443]
[1727517286278,1.96979328,2670.1,2670.0,0.37443]
[1727517289285,1.97056091,2670.1,2670.0,0.37443]
[1727517289685,4.4265402,2670.1,2670.0,0.37443]
[1727517296990,1.97056091,2670.1,2670.0,0.37443]
[1727517298288,2.93248098,2670.3,2670.0,9.7456]
[1727517298489,1.47387234,2670.3,2670.2,1.72441]
[1727517298803,2.45646626,2670.5,2670.4,0.37438]
[1727517298991,2.45646626,2670.6,2670.5,0.37436]
[1727517299188,2.45646626,2670.6,2670.5,1.72436]
[1727517299383,1.96396159,2670.7,2670.6,1.31023]
[1727517299585,1.96396159,2670.8,2670.6,2.1269]
[1727517299782,1.96396159,2670.8,2670.7,1.72434]
[1727517299986,5.17176159,2670.9,2670.8,0.37432]
[1727517300186,3.2078,2670.9,2670.8,0.37432]
[1727517300386,5.17165543,2670.9,2670.8,0.37432]
[1727517301292,3.2078,2670.9,2670.8,0.37432]
[1727517302487,4.67862775,2670.9,2670.8,0.37432]
[1727517303793,4.67862775,2670.9,2670.8,1.35]
[1727517303794,5.17165543,2670.9,2670.8,1.35]
[1727517304387,2.33815543,2671.0,2670.8,1.35]
[1727517304593,2.33815543,2671.0,2670.7,0.37433]
[1727517304594,0.3744,2670.9,2670.7,0.37433]
[1727517304789,0.3856,2670.8,2670.7,0.37433]
[1727517304988,1.47003864,2670.8,2670.7,0.37433]
[1727517305297,0.98001252,2670.8,2670.5,3.2078]
[1727517305494,1.47001878,2671.0,2670.8,0.37432]
[1727517305495,0.98001252,2670.9,2670.8,0.37432]
[1727517305686,0.98001252,2670.9,2670.8,1.72432]
[1727517307699,0.98001252,2671.0,2670.9,0.37431]
[1727517307899,1.85561878,2671.1,2670.9,0.37431]
[1727517308098,1.85561878,2671.1,2671.0,1.35]
[1727517308287,1.85455772,2671.1,2671.0,1.35]
[1727517308492,5.59855772,2671.1,2671.0,1.72429]
[1727517310101,1.85455772,2671.1,2671.0,1.72429]
[1727517310505,1.36440925,2671.1,2671.0,1.72429]
[1727517310705,1.36440512,2671.1,2671.0,1.72429]
[1727517311006,0.3856,2671.1,2671.0,1.72429]
[1727517311598,0.3856,2671.1,2671.0,1.35]
[1727517311794,0.3856,2671.1,2670.6,0.3922]
[1727517311795,5.10831018,2671.1,2670.8,0.37432]
[1727517312109,0.97871018,2670.9,2670.8,0.37432]
[1727517312293,0.97871018,2670.9,2670.8,1.72432]
[1727517312996,4.56081018,2671.0,2670.8,1.72432]
[1727517313202,1.35302018,2670.9,2670.8,1.35]
[1727517314508,0.97871018,2670.9,2670.8,1.72432]
[1727517314900,1.35302018,2670.9,2670.6,0.37434]
[1727517315196,1.34851018,2670.8,2670.7,1.35]
[1727517315406,0.3698,2670.8,2670.7,1.72434]
[1727517319001,1.83875772,2670.8,2670.7,1.72434]
[1727517322203,1.85005772,2670.9,2670.8,0.37432]
[1727517322709,1.85005772,2670.9,2670.8,0.76112]
[1727517323005,1.46895772,2670.9,2670.8,0.76112]
[1727517323506,1.86505772,2671.0,2670.9,0.37431]
[1727517323711,1.86505772,2671.0,2670.9,1.72431]
[1727517326901,0.3961,2671.0,2670.9,1.72431]
[1727517331008,0.3856,2671.1,2671.0,0.37429]
[1727517331209,3.2078,2671.5,2671.0,0.37429]
[1727517331210,0.347,2671.6,2671.5,0.37422]
[1727517331519,0.3788,2671.8,2671.5,5.0932]
[1727517331714,0.3788,2671.8,2671.7,1.35]
[1727517332008,0.3788,2671.8,2671.7,1.72419]
[1727517332214,0.3788,2671.8,2671.7,1.35]
[1727517332410,0.7509,2672.1,2672.0,0.37415]
[1727517332611,0.7509,2672.1,2672.0,1.72415]
[1727517332612,0.3788,2672.1,2672.0,1.72415]
[1727517333012,0.3788,2672.1,2672.0,5.46655]
[1727517333706,0.4024,2672.2,2672.1,0.37414]
[1727517334308,1.14661,2672.4,2671.8,3.6097]
[1727517334309,2.73635543,2672.4,2671.8,3.6097]
[1727517334510,0.74584,2672.1,2671.8,0.77608]
[1727517334713,0.74584,2672.1,2672.0,1.35]
[1727517335315,0.37417,2671.9,2671.7,0.974]
[1727517335513,0.4059,2671.8,2671.7,1.34819]
[1727517335705,0.8063,2671.8,2671.7,1.34819]
[1727517336016,0.8063,2671.8,2671.6,0.3742]
[1727517336210,0.8063,2671.8,2671.5,4.9614]
[1727517336211,0.8063,2671.8,2671.5,4.5582]
[1727517336519,0.8063,2671.8,2671.7,1.35]
[1727517336911,1.18048,2671.8,2671.7,1.35]
[1727517338533,4.38828,2671.8,2671.7,1.35]
[1727517338818,1.18048,2671.8,2671.7,1.35]
[1727517339425,4.38828,2671.8,2671.7,1.35]
[1727517339620,1.18048,2671.8,2671.7,1.35]
[1727517340024,7.7573,2671.8,2671.1,3.2078]
[1727517340319,0.37421,2671.6,2671.5,1.35]
[1727517340816,0.3728,2671.6,2671.2,0.37426]
[1727517341126,3.95481,2671.6,2671.5,1.35]
[1727517341317,0.74701,2671.6,2671.5,1.35]
[1727517341622,5.91866543,2671.6,2671.5,1.35]
[1727517342012,3.95481,2671.6,2671.5,1.35]
[1727517342212,3.95481,2671.6,2671.1,0.403]
[1727517342213,3.95481,2671.6,2671.4,3.29424]
[1727517342614,3.95481,2671.6,2671.4,2.92]
[1727517342814,3.95481,2671.6,2671.5,0.37422]
[1727517342815,0.3728,2671.6,2671.5,0.37422]
[1727517343018,0.3728,2671.6,2671.5,0.76392]
[1727517345125,0.8063,2671.8,2671.6,0.37419]
[1727517345426,0.8063,2671.8,2671.7,3.29419]
[1727517346125,0.4004,2671.8,2671.7,3.29419]
[1727517349628,2.35225543,2672.0,2671.9,0.37417]
[1727517349827,2.72640543,2672.0,2671.9,2.92]
[1727517350027,2.35225543,2672.0,2671.9,2.92]
[1727517350223,2.35225543,2672.0,2671.9,3.29417]
[1727517350625,0.3884,2672.0,2671.9,3.29417]
[1727517351533,5.57115543,2672.1,2672.0,0.37415]
[1727517352325,3.6073,2672.1,2672.0,0.77365]
[1727517352733,3.6073,2672.1,2672.0,0.3995]
[1727517353024,3.6073,2672.1,2672.0,0.77365]
[1727517354735,0.3995,2672.1,2672.0,0.77365]
[1727517355835,0.3995,2672.1,2672.0,0.3995]
[1727517356031,0.3995,2672.1,2672.0,0.77365]
[1727517358327,0.77364,2672.1,2672.0,0.77365]
[1727517358634,0.37415,2672.0,2671.9,2.92]
[1727517358932,0.37415,2672.0,2671.9,3.29417]
[1727517359455,0.3995,2672.1,2671.9,2.92]
[1727517359623,0.37415,2672.0,2671.9,3.29416]
[1727517360439,0.37415,2672.0,2671.9,2.92]
[1727517360824,0.37415,2672.0,2671.9,3.29417]
[1727517361042,0.37415,2672.0,2671.9,2.92]
[1727517361233,3.2078,2672.0,2671.8,2.92]
[1727517361432,0.37423,2671.5,2671.4,2.92]
[1727517362336,0.37423,2671.5,2671.4,1.35]
[1727517362543,0.74492,2671.5,2671.4,1.35]
[1727517362837,0.3707,2671.5,2671.4,1.72424]
[1727517364834,0.77359,2671.8,2671.6,0.3742]
[1727517365043,0.77359,2671.8,2671.2,0.3892]
[1727517365044,0.77359,2671.8,2671.7,1.72419]
[1727517365240,0.3994,2671.8,2671.7,1.72419]
[1727517365439,0.3994,2671.8,2671.7,1.35]
[1727517365645,0.3994,2671.8,2671.7,1.72419]
[1727517366341,0.77358,2671.8,2671.7,1.35]
[1727517367937,1.96385543,2672.1,2671.7,4.5578]
[1727517368140,0.76324,2672.1,2671.9,1.72416]
[1727517368545,0.76325,2672.1,2671.9,1.72416]
[1727517368739,0.76325,2672.1,2671.9,1.35]
[1727517368941,0.76325,2672.1,2672.0,0.3687]
[1727517369544,0.76325,2672.1,2672.0,0.74285]
[1727517369741,0.3891,2672.1,2672.0,0.74285]
[1727517370139,0.3891,2672.1,2672.0,3.66285]
[1727517372745,0.76324,2672.1,2672.0,3.66285]
[1727517372955,0.3891,2672.1,2672.0,3.66285]
[1727517374047,1.96385543,2672.3,2672.0,3.2887]
[1727517374240,2.33796543,2672.3,2672.2,2.92]
[1727517374843,0.37411,2672.3,2672.2,2.92]
[1727517375252,3.2078,2672.4,2672.0,3.66285]
[1727517375253,0.37413,2672.2,2672.0,3.66285]
[1727517375452,3.52534046,2672.2,2672.0,3.66285]
[1727517375649,2.33335046,2672.1,2672.0,0.37415]
[1727517375850,1.95921046,2672.1,2671.8,2.92]
[1727517376050,2.33337046,2672.0,2671.8,3.29418]
[1727517376245,2.33337046,2672.0,2671.8,2.92]
[1727517376246,0.37417,2671.9,2671.8,2.92]
[1727517376442,2.33338046,2671.9,2671.8,2.92]
[1727517376852,2.33338046,2671.9,2671.8,3.29418]
[1727517377056,1.95921046,2671.9,2671.8,2.92]
[1727517377246,2.33338046,2671.9,2671.8,3.29418]
[1727517377648,2.33338046,2671.9,2671.8,2.92]
[1727517378245,1.929298,2671.9,2671.8,2.92]
[1727517378956,1.555128,2671.9,2671.8,2.92]
[1727517379158,0.37417,2671.9,2671.8,2.92]
[1727517379354,0.37418,2671.9,2671.7,3.58199]
[1727517379652,1.1711,2671.8,2671.5,3.3088]
[1727517379856,0.3742,2671.7,2671.5,3.68301]
[1727517380056,3.50624389,2671.8,2671.6,0.37421]
[1727517380261,0.7837,2671.8,2671.7,3.29419]
[1727517380449,0.7837,2671.8,2671.7,2.92]
[1727517380450,1.15788,2671.8,2671.7,2.92]
[1727517380648,0.7837,2671.8,2671.7,3.29419]
[1727517381451,1.15788,2671.8,2671.7,2.92]
[1727517381953,0.7837,2671.8,2671.7,3.29419]
[1727517383754,0.7837,2671.8,2671.7,2.92]
[1727517384058,0.7837,2671.8,2671.7,3.29419]
[1727517385062,1.15788,2671.8,2671.7,3.29419]
[1727517385858,0.7837,2671.8,2671.7,3.29419]
[1727517386560,1.15788,2671.8,2671.7,3.29419]
[1727517386760,0.7837,2671.8,2671.7,3.29419]
[1727517388362,3.11883389,2671.8,2671.7,3.29419]
[1727517389360,3.11883389,2671.8,2671.5,3.3088]
[1727517389361,2.33904363,2671.8,2671.5,3.3088]
[1727517389562,0.37421,2671.6,2671.5,3.3088]
[1727517390063,0.37421,2671.6,2671.5,2.92]
[1727517390260,0.37421,2671.6,2671.5,1.35]
[1727517391262,0.37425,2671.3,2671.0,0.97293578]
[1727517391463,1.52447,2671.2,2671.1,1.35]
[1727517391667,3.48702835,2671.2,2671.1,1.35]
[1727517391871,3.11275835,2671.2,2671.1,1.72428]
[1727517392257,1.1502,2671.2,2671.1,1.72428]
[1727517392673,1.52446,2671.2,2671.1,1.35]
[1727517393174,1.1502,2671.2,2671.1,1.72428]
[1727517393764,2.62112756,2671.2,2671.1,1.72428]
[1727517394263,1.1502,2671.2,2671.1,3.29428]
[1727517394577,2.99538756,2671.2,2671.1,2.92]
[1727517394871,2.99538756,2671.2,2671.0,0.37428]
[1727517395072,1.84520756,2671.1,2670.9,3.2943]
[1727517395277,0.37429,2671.0,2670.9,2.92]
[1727517395478,1.84520756,2671.1,2670.9,3.2943]
[1727517395680,1.84520756,2671.1,2670.9,2.92]
[1727517395877,1.47092756,2671.1,2670.9,2.92]
[1727517396179,0.37429,2671.0,2670.9,2.92]
[1727517396374,1.84521756,2671.1,2670.9,3.29431]
[1727517396570,0.37429,2671.0,2670.9,2.92]
[1727517397185,1.47092756,2671.1,2670.9,2.92]
[1727517397482,2.62112756,2671.2,2671.1,0.37428]
[1727517398180,2.99539756,2671.2,2671.0,0.37429]
[1727517398377,0.37428,2671.1,2671.0,0.37429]
[1727517398781,2.62112756,2671.2,2670.9,3.2943]
[1727517398989,1.84521756,2671.1,2670.9,3.2943]
[1727517399180,0.37429,2671.0,2670.9,3.2943]
[1727517399976,2.62112756,2671.2,2670.9,2.92]
[1727517399977,0.37428,2671.1,2670.9,2.92]
[1727517400177,0.37428,2671.1,2671.0,0.37429]
[1727517400987,2.99539756,2671.2,2671.0,0.37429]
[1727517401286,0.37428,2671.1,2671.0,0.37429]
[1727517401489,0.37428,2671.1,2670.9,3.2943]
[1727517401684,2.62112756,2671.2,2670.9,3.2943]
[1727517401881,2.62112756,2671.2,2671.0,0.37429]
[1727517402484,2.99540756,2671.2,2671.0,0.37429]
[1727517402680,0.37428,2671.1,2671.0,0.37429]
[1727517403801,2.62112756,2671.2,2671.1,0.37428]
[1727517404085,1.1502,2671.2,2671.1,0.37428]
[1727517404687,1.1502,2671.2,2671.0,0.37429]
[1727517404887,1.52447,2671.2,2671.1,0.37428]
[1727517405087,1.52447,2671.2,2671.0,0.37428]
[1727517405792,1.52447,2671.2,2671.1,0.37428]
[1727517407994,1.52447,2671.2,2670.9,2.92]
[1727517407995,1.1502,2671.2,2670.9,2.92]
[1727517408391,1.52448,2671.2,2671.0,0.37429]
[1727517408688,1.52448,2671.2,2671.1,0.37428]
[1727517409285,1.52448,2671.2,2670.9,2.92]
[1727517409595,0.37428,2671.1,2671.0,0.37429]
[1727517409795,1.52448,2671.2,2671.0,0.37429]
[1727517409987,0.37428,2671.1,2671.0,0.37429]
[1727517410693,1.1502,2671.2,2670.9,2.92]
[1727517410889,0.37429,2671.1,2670.9,3.29429]
[1727517411291,0.37429,2671.1,2671.0,0.37429]
[1727517412790,0.37429,2671.1,2670.9,2.92]
[1727517413195,4.358,2671.2,2670.9,2.92]
[1727517413500,0.37429,2671.1,2670.9,3.2943]
[1727517414201,0.37429,2671.1,2671.0,0.37429]
[1727517415594,4.73228,2671.2,2671.0,0.37429]
[1727517415799,4.358,2671.2,2670.9,1.7243]
[1727517416402,0.37428,2671.1,2670.9,1.7243]
[1727517418902,0.37429,2671.1,2670.9,1.7243]
[1727517419996,4.358,2671.2,2670.8,0.3862]
[1727517419997,0.37429,2671.0,2670.8,2.11051]
[1727517420599,1.35,2671.1,2670.8,2.11051]
[1727517420797,0.3743,2671.0,2670.8,1.7362]
[1727517420998,0.3743,2671.0,2670.8,2.11051]
[1727517421196,0.37431,2670.9,2670.8,2.11051]
[1727517421392,5.82892756,2671.2,2670.8,1.7362]
[1727517421603,0.37428,2671.1,2671.0,1.35]
[1727517421904,0.37428,2671.1,2671.0,1.72429]
[1727517426304,1.84520756,2671.1,2671.0,1.72429]
[1727517426908,1.1502,2671.2,2671.1,0.37428]
[1727517426909,2.23952756,2671.2,2671.1,0.37428]
[1727517427103,0.7686,2671.2,2671.1,0.74738]
[1727517427508,1.14286,2671.2,2671.1,0.3731]
[1727517427713,2.61378756,2671.2,2671.1,0.3731]
[1727517428208,2.61379756,2671.2,2671.0,1.72428]
[1727517428404,0.37428,2671.1,2671.0,1.72428]
[1727517428800,5.82159756,2671.2,2671.0,1.72428]
[1727517429610,5.82159756,2671.2,2671.1,0.37428]
[1727517429802,2.61378756,2671.2,2671.1,0.37428]
[1727517430008,0.3807,2671.2,2671.1,0.37428]
[1727517430205,1.85162756,2671.2,2671.1,0.37428]
[1727517431218,2.22589756,2671.2,2671.0,1.72428]
[1727517431406,1.85162756,2671.2,2670.9,1.35]
[1727517431608,3.56440756,2671.1,2671.0,0.2]
[1727517431803,4.05603835,2671.1,2671.0,0.2]
[1727517432508,2.70603835,2671.1,2671.0,0.2]
[1727517433016,0.74348,2671.1,2671.0,0.57429]
[1727517433210,2.33175835,2671.1,2671.0,0.57429]
[1727517434215,2.70603835,2671.1,2671.0,0.57429]
[1727517434509,1.96255835,2671.1,2671.0,0.57429]
[1727517434814,0.75497,2671.2,2671.1,0.37428]
[1727517435114,0.37428,2671.1,2671.0,0.57429]
[1727517435306,2.337359,2671.1,2671.0,0.57429]
[1727517435506,1.963079,2671.1,2671.0,0.57429]
[1727517436105,3.20146952,2671.2,2671.0,0.57429]
[1727517436513,0.37428,2671.1,2671.0,0.2]
[1727517437211,4.75621833,2671.2,2671.0,0.57429]
[1727517437411,1.55471644,2671.1,2671.0,0.57429]
[1727517437911,4.00120596,2671.1,2671.0,0.57429]
[1727517438116,4.00122324,2671.1,2671.0,0.57429]
[1727517439017,4.37550324,2671.1,2671.0,0.57429]
[1727517439542,4.00122324,2671.1,2671.0,0.2]
[1727517439812,4.00122324,2671.1,2671.0,0.57429]
[1727517441815,4.00122324,2671.1,2671.0,0.2]
[1727517441816,4.37550324,2671.1,2671.0,0.2]
[1727517442013,2.32091372,2671.1,2671.0,0.2]
[1727517443723,3.25661372,2671.1,2671.0,0.2]
[1727517444018,2.32091372,2671.1,2671.0,0.2]
[1727517446423,7.41491372,2671.1,2671.0,0.2]
[1727517447924,7.41399261,2671.1,2671.0,0.2]
[1727517452624,7.41311346,2671.1,2671.0,0.2]
[1727517453021,3.66911346,2671.1,2671.0,0.57429]
[1727517453322,4.40080202,2671.1,2671.0,0.57429]
[1727517453715,4.40080202,2671.1,2671.0,0.95959]
[1727517454925,4.40063174,2671.1,2671.0,0.95959]
[1727517456028,4.00873174,2671.1,2671.0,0.95959]
[1727517456226,1.55276318,2671.1,2671.0,0.95959]
[1727517457233,6.04446856,2671.2,2671.1,0.37428]
[1727517457421,7.5972141,2671.2,2671.1,0.37428]
[1727517458529,2.85326856,2671.3,2671.2,0.37426]
[1727517458827,2.3236295,2671.3,2671.2,0.37426]
[1727517459028,3.22672677,2671.3,2671.2,0.37426]
[1727517459232,5.15360627,2671.3,2671.2,0.37426]
[1727517459429,2.6978795,2671.3,2671.2,0.37426]
[1727517459631,4.0478795,2671.3,2671.2,0.37426]
[1727517460422,0.37428,2671.1,2671.0,0.2]
[1727517460632,4.17993055,2671.1,2671.0,0.2]
[1727517460933,5.73261814,2671.1,2671.0,0.2]
[1727517461234,3.27696759,2671.1,2671.0,0.2]
[1727517462139,4.21266759,2671.1,2671.0,0.2]
[1727517462431,7.95678951,2671.1,2671.0,0.2]
[1727517462633,8.89248951,2671.1,2671.0,0.2]
[1727517462833,11.82873361,2671.1,2671.0,0.2]
[1727517463026,14.31199202,2671.1,2671.0,0.2]
[1727517463230,10.89303361,2671.1,2671.0,0.2]
[1727517463633,13.37599481,2671.1,2671.0,0.2]
[1727517464327,19.37599481,2671.1,2671.0,0.2]
[1727517466335,16.89303361,2671.1,2671.0,0.2]
[1727517466930,16.89146175,2671.1,2671.0,0.2]
[1727517468437,17.82716175,2671.1,2671.0,0.2]
[1727517468642,20.30683846,2671.1,2671.0,0.185101]
[1727517468941,0.37436,2670.5,2670.4,0.4083]
[1727517469139,4.93216,2670.5,2670.4,0.4083]
[1727517469641,8.93621192,2670.5,2670.4,0.78268]
[1727517469842,4.93216,2670.5,2670.4,0.78268]
[1727517471142,6.89426659,2670.5,2670.4,0.78268]
[1727517471733,6.89426659,2670.5,2670.4,0.4083]
[1727517472042,7.29946659,2670.5,2670.4,0.4083]
[1727517473032,7.29946659,2670.5,2670.4,0.78268]
[1727517473450,7.29946659,2670.5,2670.4,0.4083]
[1727517474131,5.33736,2670.5,2670.2,0.7468]
[1727517474435,5.33736,2670.5,2670.1,1.35]
[1727517474436,3.31123972,2670.4,2670.1,0.37441]
[1727517474639,1.4709279,2670.2,2670.1,0.37441]
[1727517476932,0.3744,2670.3,2670.2,0.37441]
[1727517477134,1.84455756,2670.3,2670.2,0.37441]
[1727517477344,1.84455756,2670.3,2670.0,2.1372]
[1727517477345,0.37442,2670.1,2670.0,0.3914]
[1727517477545,0.37446,2669.8,2669.7,0.3899]
[1727517477836,0.37446,2669.8,2669.3,1.35]
[1727517477837,4.5578,2669.8,2669.3,1.35]
[1727517478039,0.9803571,2669.6,2669.5,0.3745]
[1727517478346,2.1359371,2669.7,2669.5,1.35]
[1727517478543,2.1359371,2669.7,2669.5,1.7245]
[1727517479148,1.15558,2669.7,2669.6,0.3963]
[1727517480242,0.7811,2669.7,2669.6,0.3963]
[1727517480443,0.3887,2669.7,2669.6,0.3963]
[1727517480638,4.1881571,2669.8,2669.6,2.1258]
[1727517480947,3.2078,2669.8,2669.6,2.1258]
[1727517481534,0.9803571,2670.0,2669.7,3.7456]
[1727517481738,0.9803571,2670.0,2669.9,0.37445]
[1727517481937,4.1881571,2670.1,2670.0,0.37443]
[1727517482243,3.2078,2670.1,2670.0,1.72443]
[1727517482434,3.2078,2670.1,2670.0,5.47003]
[1727517484438,0.9803571,2670.3,2670.1,0.37441]
[1727517484644,0.9803571,2670.3,2670.2,0.7591]
[1727517485041,1.3547371,2670.4,2670.2,1.13351]
[1727517485250,1.84491565,2670.4,2670.3,0.4052]
[1727517485431,1.3529588,2670.4,2670.3,0.4052]
[1727517485636,1.35295952,2670.4,2670.3,0.4052]
[1727517485860,0.37438,2670.4,2670.3,0.4052]
[1727517486048,1.35294656,2670.4,2670.3,0.4052]
[1727517486249,1.35297502,2670.4,2670.3,0.4052]
[1727517486542,0.97859502,2670.4,2670.3,0.4052]
[1727517486742,0.97859502,2670.4,2670.3,0.77959]
[1727517486939,0.97859502,2670.4,2670.3,0.4052]
[1727517487140,1.35297502,2670.4,2670.3,0.4052]
[1727517488440,1.72438,2670.4,2670.3,0.4052]
[1727517488648,0.37439,2670.3,2670.2,0.7591]
[1727517488848,1.35299975,2670.3,2670.2,0.3709]
[1727517490150,4.56079975,2670.3,2670.2,0.3709]
[1727517491536,5.91079975,2670.3,2670.2,0.3709]
[1727517493850,5.91082155,2670.3,2670.2,0.3709]
[1727517496546,2.70302155,2670.4,2670.2,0.74531]
[1727517496751,1.35302155,2670.4,2670.3,0.3961]
[1727517497145,0.37439,2670.4,2670.3,0.3961]
[1727517497349,1.35302155,2670.4,2670.3,0.3961]
[1727517500050,0.37438,2670.4,2670.3,0.77049]
[1727517500555,1.35300155,2670.5,2670.4,0.37438]
[1727517500943,0.37438,2670.4,2670.3,0.77048]
[1727517502355,1.35301155,2670.4,2670.3,0.77048]
[1727517502558,0.97863155,2670.4,2670.3,0.77048]
[1727517502757,1.35361745,2670.5,2670.4,0.37438]
[1727517502957,1.47053565,2670.5,2670.3,0.3961]
[1727517503151,0.97928297,2670.4,2670.3,0.3961]
[1727517503352,0.97928297,2670.4,2670.3,0.77048]
[1727517505156,1.84491565,2670.4,2670.3,0.77048]
[1727517508159,2.33560972,2670.5,2670.4,0.37438]
[1727517508660,0.37438,2670.4,2670.3,0.77048]
[1727517508971,1.84551857,2670.4,2670.3,0.77048]
[1727517509157,0.37438,2670.4,2670.3,0.37438]
[1727517509857,0.37439,2670.3,2670.2,2.0953]
[1727517510057,1.47132633,2670.3,2670.2,2.0953]
[1727517510252,1.47132633,2670.3,2670.2,0.7453]
[1727517510660,2.25712633,2670.3,2670.2,0.7453]
[1727517511360,2.63151633,2670.3,2670.2,0.7453]
[1727517512265,2.25712633,2670.3,2670.2,0.7453]
[1727517513061,0.7858,2670.3,2670.2,0.7453]
[1727517513262,2.25781673,2670.3,2670.2,0.7453]
[1727517514081,0.7858,2670.3,2670.2,0.7453]
[1727517514363,2.25800705,2670.3,2670.2,0.7453]
[1727517514571,1.47220705,2670.3,2670.2,2.0953]
[1727517514772,1.47220705,2670.4,2670.3,0.37439]
[1727517515065,0.9813791,2670.4,2670.3,5.05518]
[1727517515261,0.9813791,2670.4,2670.3,11.43628]
[1727517516862,0.9813791,2670.4,2670.3,10.50029]
[1727517517058,3.2078,2670.5,2670.4,0.37438]
[1727517517257,3.2078,2670.5,2670.4,5.86058]
[1727517517665,4.68000705,2670.5,2670.4,5.86058]
[1727517518362,3.2078,2670.5,2670.4,5.86058]
[1727517518568,4.18879391,2670.5,2670.4,5.86058]
[1727517518763,0.98099391,2670.5,2670.4,5.86058]
[1727517521172,0.98099391,2670.6,2670.5,0.37436]
[1727517521974,0.98099391,2670.7,2670.6,0.37435]
[1727517522266,0.98099391,2670.7,2670.6,1.72435]
[1727517522465,0.98099391,2670.8,2670.7,0.37434]
[1727517523272,2.23701705,2670.9,2670.8,0.37432]
[1727517523475,1.86270705,2670.9,2670.8,1.72432]
[1727517524269,1.86270705,2670.9,2670.8,5.46832]
[1727517525878,0.3905,2670.9,2670.8,5.46832]
[1727517526069,1.86270705,2670.9,2670.8,1.72432]
[1727517526264,1.37072111,2670.9,2670.8,1.72432]
[1727517526872,1.86270705,2670.9,2670.8,1.72432]
[1727517527076,1.37073226,2670.9,2670.8,1.72432]
[1727517527282,1.86270705,2670.9,2670.8,1.72432]
[1727517528887,1.37070533,2670.9,2670.8,1.72432]
[1727517529071,0.3905,2670.9,2670.8,1.72432]
[1727517529384,1.37065645,2670.9,2670.8,1.72432]
[1727517535678,0.3905,2670.9,2670.8,1.72432]
[1727517535872,1.88040705,2671.1,2671.0,0.37429]
[1727517535873,1.38835645,2671.1,2671.0,0.37429]
[1727517543486,0.4082,2671.1,2671.0,0.37429]
[1727517543685,1.38835645,2671.1,2671.0,0.37429]
[1727517544381,0.4082,2671.1,2671.0,0.37429]
[1727517545983,1.38835645,2671.1,2671.0,0.37429]
[1727517552489,1.88040705,2671.1,2671.0,0.37429]
[1727517552982,3.23040705,2671.1,2671.0,0.37429]
[1727517553180,3.60468705,2671.1,2671.0,0.37429]
[1727517553593,3.23040705,2671.1,2671.0,0.37429]
[1727517553790,3.60468705,2671.1,2670.9,0.3743]
[1727517554090,3.60468705,2671.1,2671.0,0.37429]
[1727517554091,4.09371972,2671.1,2671.0,0.37429]
[1727517554292,4.09371972,2671.1,2670.7,1.7398]
[1727517554293,4.09371972,2671.1,2670.9,0.3743]
[1727517554703,4.09371972,2671.1,2671.0,0.37429]
[1727517555387,1.7582,2671.1,2671.0,0.37429]
[1727517555696,3.71858353,2671.1,2671.0,0.37429]
[1727517555886,4.09286353,2671.1,2671.0,0.37429]
[1727517556188,3.71858353,2671.1,2671.0,0.37429]
[1727517556389,1.7582,2671.1,2671.0,0.37429]
[1727517556579,4.09318491,2671.1,2671.0,0.37429]